bitfinex-derivatives/quotes_ETHF0:USTF0_20251225
["timestamp","ask_amount","ask_price","bid_price","bid_amount"]
[1766655084802,4.873e-05,2930.3,2928.7,8.766]
[1766655085096,4.873e-05,2930.3,2928.8,3.78024961]
[1766655085302,4.873e-05,2930.3,2928.8,12.86484876]
[1766655088404,4.873e-05,2930.3,2928.8,9.25542915]
[1766655089091,4.873e-05,2930.3,2928.8,7.90241541]
[1766655089605,4.873e-05,2930.3,2928.8,9.11852673]
[1766655089803,0.96454718,2930.2,2928.8,9.11852673]
[1766655090005,3.415,2930.1,2928.8,9.11852673]
[1766655090197,3.493,2930.0,2928.8,9.11852673]
[1766655107718,3.66376,2930.0,2928.8,7.90241541]
[1766655107913,1.1306921,2929.9,2928.8,7.90241541]
[1766655108115,4.3749221,2929.8,2928.8,7.90241541]
[1766655108319,3.415,2929.8,2928.8,7.90241541]
[1766655108515,3.58578,2929.8,2928.8,7.90241541]
[1766655108923,0.95986071,2929.7,2928.8,7.90241541]
[1766655109124,3.415,2929.8,2928.6,0.00353242]
[1766655109325,0.95991057,2929.7,2928.6,0.00353242]
[1766655109623,3.415,2929.8,2928.6,0.00353242]
[1766655109822,0.95971682,2929.7,2928.6,0.00353242]
[1766655110026,3.415,2929.8,2928.6,0.00353242]
[1766655110225,0.95971603,2929.7,2928.6,0.00353242]
[1766655110426,0.17079,2929.6,2928.6,0.00353242]
[1766655110621,3.415,2929.5,2928.6,0.00353242]
[1766655110822,6.079,2929.4,2928.6,0.00353242]
[1766655137261,0.97419769,2929.3,2928.6,0.00353242]
[1766655137460,3.416,2929.2,2928.6,0.00353242]
[1766655137662,3.416,2929.2,2928.5,3.415]
[1766655137865,3.416,2929.2,2928.0,3.416]
[1766655138162,0.00512138,2928.9,2928.0,3.416]
[1766655138364,3.416,2928.8,2928.0,3.416]
[1766655138762,3.416,2928.8,2928.0,3.41932506]
[1766655139662,3.416,2928.8,2928.0,4.60536644]
[1766655150777,3.416,2928.7,2928.0,4.60536644]
[1766655160191,3.416,2928.7,2927.7,6.239]
[1766655160192,3.416,2928.7,2927.7,9.655]
[1766655160379,3.416,2928.7,2927.9,1.15881656]
[1766655161085,3.416,2928.7,2927.7,9.655]
[1766655161380,3.416,2928.7,2927.7,9.65855788]
[1766655174889,3.416,2928.7,2927.7,3.41955788]
[1766655175089,0.97493144,2928.6,2927.7,3.41955788]
[1766655175281,3.416,2928.7,2927.7,3.41955788]
[1766655175482,0.97493144,2928.6,2927.7,3.41955788]
[1766655175682,3.416,2928.7,2927.7,3.41955788]
[1766655175978,0.97493144,2928.6,2927.7,3.41955788]
[1766655176182,3.416,2928.7,2927.7,3.41955788]
[1766655176382,0.97508119,2928.6,2927.7,3.41955788]
[1766655176583,3.416,2928.7,2927.7,3.41955788]
[1766655176783,0.97508119,2928.6,2927.7,3.41955788]
[1766655176987,3.416,2928.7,2927.7,3.41955788]
[1766655177188,0.97508119,2928.6,2927.7,3.41955788]
[1766655177386,3.416,2928.7,2927.7,3.41955788]
[1766655177587,0.9752698,2928.6,2927.7,3.41955788]
[1766655177787,3.416,2928.7,2927.7,3.41955788]
[1766655177986,0.9752701,2928.6,2927.7,3.41955788]
[1766655178190,3.416,2928.7,2927.7,3.41955788]
[1766655178390,0.97551416,2928.6,2927.7,3.41955788]
[1766655178583,3.416,2928.7,2927.7,3.41955788]
[1766655178783,0.97551416,2928.6,2927.7,3.41955788]
[1766655178984,3.416,2928.7,2927.7,3.41955788]
[1766655179281,0.97551416,2928.6,2927.7,3.41955788]
[1766655179482,3.416,2928.7,2927.7,3.41955788]
[1766655179678,0.97560643,2928.6,2927.7,3.41955788]
[1766655179890,3.416,2928.7,2927.7,3.41955788]
[1766655180092,0.97560643,2928.6,2927.7,3.41955788]
[1766655180283,3.416,2928.7,2927.7,3.41955788]
[1766655180483,0.97571611,2928.6,2927.7,3.41955788]
[1766655180687,3.416,2928.7,2927.7,3.41955788]
[1766655180992,0.97571611,2928.6,2927.7,3.41955788]
[1766655181291,3.416,2928.7,2927.7,3.41955788]
[1766655181479,0.97586848,2928.6,2927.7,3.41955788]
[1766655181684,3.416,2928.7,2927.7,3.41955788]
[1766655181880,0.97588158,2928.6,2927.7,3.41955788]
[1766655182085,0.97588158,2928.5,2927.7,3.41955788]
[1766655182386,4.39188158,2928.4,2927.7,3.41955788]
[1766655182585,3.416,2928.4,2927.7,3.41955788]
[1766655182888,3.416,2928.4,2927.2,3.416]
[1766655182889,0.97602275,2928.3,2927.2,3.416]
[1766655183088,8.219,2928.4,2927.2,3.416]
[1766655183290,0.97635078,2928.3,2927.2,3.416]
[1766655183492,8.219,2928.4,2927.2,3.416]
[1766655183787,0.97610672,2928.3,2927.2,3.416]
[1766655183979,8.219,2928.4,2927.2,3.41847665]
[1766655184180,0.9761057,2928.3,2927.2,3.41847665]
[1766655184379,3.416,2928.2,2927.2,3.41847665]
[1766655184583,3.42009577,2928.2,2927.2,3.41847665]
[1766655186791,0.00409577,2928.2,2927.2,3.41847665]
[1766655186994,0.17085,2928.6,2927.2,3.41847665]
[1766655187192,3.417,2928.5,2927.2,3.41847665]
[1766655187397,3.2577,2928.5,2927.2,3.41847665]
[1766655187998,3.260758,2928.5,2927.2,3.41847665]
[1766655190796,2.842558,2928.5,2927.2,3.41847665]
[1766655191106,3.2577,2928.6,2927.3,4.29197961]
[1766655191398,3.417,2928.7,2927.3,4.29197961]
[1766655192099,3.41992954,2928.7,2927.3,4.29197961]
[1766655192291,3.41992954,2928.7,2927.2,7.71045626]
[1766655193598,3.41992954,2928.7,2927.2,3.41847665]
[1766655197797,0.00292954,2928.7,2927.2,3.41847665]
[1766655197999,3.416,2928.6,2927.2,3.41847665]
[1766655199695,3.416,2928.5,2927.2,3.41847665]
[1766655203508,3.416,2928.5,2927.3,7.787]
[1766655211813,0.00292954,2928.7,2927.3,7.787]
[1766655212111,3.416,2928.6,2927.3,7.787]
[1766655222025,3.416,2928.6,2927.2,0.00247665]
[1766655222221,3.416,2928.6,2927.3,8.661]
[1766655222417,3.416,2928.6,2927.2,0.00247665]
[1766655222618,3.416,2928.6,2927.3,3.416]
[1766655223027,0.97322729,2928.5,2927.3,3.416]
[1766655223323,3.416,2928.6,2927.3,3.416]
[1766655223526,0.97326327,2928.5,2927.3,3.416]
[1766655223726,3.58685,2928.6,2927.3,3.416]
[1766655223933,0.97326371,2928.5,2927.3,3.416]
[1766655224120,3.58685,2928.6,2927.3,3.416]
[1766655224421,0.97330226,2928.5,2927.3,3.416]
[1766655224617,3.58685,2928.6,2927.3,3.416]
[1766655224820,0.97330192,2928.5,2927.3,3.416]
[1766655225032,3.58685,2928.6,2927.3,3.416]
[1766655225229,0.97330124,2928.5,2927.3,3.416]
[1766655225530,3.58685,2928.6,2927.3,3.416]
[1766655225830,0.97336472,2928.5,2927.3,3.416]
[1766655226031,3.58685,2928.6,2927.3,3.416]
[1766655226223,0.97336472,2928.5,2927.3,3.416]
[1766655226526,3.58685,2928.6,2927.3,3.416]
[1766655226730,0.97345309,2928.5,2927.3,3.416]
[1766655227030,3.416,2928.4,2927.3,3.416]
[1766655229820,3.416,2928.4,2927.2,0.00247665]
[1766655230020,3.416,2928.4,2927.3,3.417]
[1766655238239,0.9736563,2928.3,2927.3,3.417]
[1766655238534,3.416,2928.4,2927.3,3.417]
[1766655238936,0.9734982,2928.3,2927.3,3.417]
[1766655239142,3.416,2928.4,2927.3,3.417]
[1766655239839,0.97336541,2928.3,2927.3,3.417]
[1766655240044,3.416,2928.4,2927.3,3.417]
[1766655240337,0.97336541,2928.3,2927.3,3.417]
[1766655240537,3.416,2928.4,2927.3,3.417]
[1766655240737,0.97334169,2928.3,2927.3,3.417]
[1766655240938,3.416,2928.4,2927.3,3.417]
[1766655241127,0.97334169,2928.3,2927.3,3.417]
[1766655241329,3.416,2928.4,2927.3,3.417]
[1766655241632,0.97325801,2928.3,2927.3,3.417]
[1766655241940,3.416,2928.4,2927.3,3.417]
[1766655242139,0.97325801,2928.3,2927.3,3.417]
[1766655242338,3.416,2928.4,2927.3,3.417]
[1766655242640,0.97321431,2928.3,2927.3,3.417]
[1766655242840,3.416,2928.4,2927.3,3.417]
[1766655243141,0.97321573,2928.3,2927.3,3.417]
[1766655243338,3.416,2928.4,2927.3,3.417]
[1766655243639,0.97318647,2928.3,2927.3,3.417]
[1766655243836,3.416,2928.4,2927.3,3.417]
[1766655244034,0.97318644,2928.3,2927.3,3.417]
[1766655244335,3.416,2928.4,2927.3,3.417]
[1766655244535,0.97317341,2928.3,2927.3,3.417]
[1766655244840,3.416,2928.4,2927.3,3.417]
[1766655245041,0.97540266,2928.3,2927.3,3.417]
[1766655245232,3.416,2928.4,2927.3,3.417]
[1766655245432,0.97540533,2928.3,2927.3,3.417]
[1766655245633,3.416,2928.4,2927.3,3.417]
[1766655245833,0.9754097,2928.3,2927.3,3.417]
[1766655246034,3.416,2928.4,2927.3,3.417]
[1766655246235,0.97539062,2928.3,2927.3,3.417]
[1766655246543,3.416,2928.4,2927.3,3.417]
[1766655246744,0.9754245,2928.3,2927.3,3.417]
[1766655246943,3.416,2928.4,2927.3,3.417]
[1766655247136,0.97542449,2928.3,2927.3,3.417]
[1766655247335,3.416,2928.4,2927.3,3.417]
[1766655247533,0.97545423,2928.3,2927.3,3.417]
[1766655247841,3.417,2928.2,2927.3,3.417]
[1766655257450,3.417,2928.2,2927.2,0.00247665]
[1766655257651,3.417,2928.2,2927.2,3.41947665]
[1766655260955,0.97611361,2928.1,2927.2,0.00247665]
[1766655261154,0.97611361,2928.0,2927.2,0.00247665]
[1766655261355,3.417,2927.9,2927.2,0.00247665]
[1766655266964,3.417,2927.9,2927.1,3.417]
[1766655268064,3.417,2927.9,2927.1,3.42029695]
[1766655279374,3.417,2927.9,2927.1,0.00329695]
[1766655282381,3.417,2927.9,2927.2,3.417]
[1766655286483,0.17087,2928.2,2927.2,3.417]
[1766655286684,4.39491037,2928.1,2927.2,3.417]
[1766655286989,0.97791037,2928.0,2927.2,3.417]
[1766655287185,3.417,2928.1,2927.2,3.417]
[1766655287486,0.97805177,2928.0,2927.2,3.417]
[1766655287684,3.417,2928.1,2927.2,3.417]
[1766655287887,0.97805177,2928.0,2927.2,3.417]
[1766655288082,3.417,2928.1,2927.2,3.417]
[1766655288281,0.97818432,2928.0,2927.2,3.417]
[1766655288488,3.417,2928.1,2927.2,3.417]
[1766655288788,0.97817908,2928.0,2927.2,3.417]
[1766655289089,3.417,2927.9,2927.2,3.417]
[1766655292786,0.17087,2928.2,2927.2,3.417]
[1766655293093,4.39558838,2928.1,2927.2,3.417]
[1766655293290,0.97858838,2928.0,2927.2,3.417]
[1766655293489,0.97858838,2927.9,2927.2,3.417]
[1766655293787,3.417,2928.1,2927.2,3.417]
[1766655293984,0.97858899,2928.0,2927.2,3.417]
[1766655294181,0.97858899,2927.9,2927.2,3.417]
[1766655294382,3.417,2928.1,2927.2,3.417]
[1766655294686,0.97858765,2928.0,2927.2,3.417]
[1766655294889,0.97858765,2927.9,2927.2,3.417]
[1766655295099,3.417,2928.1,2927.2,3.417]
[1766655295293,0.97857614,2928.0,2927.2,3.417]
[1766655295494,0.97857614,2927.9,2927.2,3.417]
[1766655295691,3.417,2927.8,2927.2,3.417]
[1766655297092,3.417,2927.8,2927.1,0.00329695]
[1766655297288,3.417,2927.8,2927.1,3.42029695]
[1766655308110,0.17087,2928.2,2927.1,3.42029695]
[1766655308298,3.417,2928.2,2927.1,3.42029695]
[1766655309906,1.402848,2928.7,2927.1,3.42029695]
[1766655310107,9.95179459,2928.6,2927.1,3.42029695]
[1766655310298,0.97779459,2928.5,2927.1,3.42029695]
[1766655310499,0.97779459,2928.4,2927.1,3.42029695]
[1766655310702,4.39479459,2928.3,2927.1,3.42029695]
[1766655311004,3.417,2928.3,2927.1,3.42029695]
[1766655311809,3.417,2928.3,2927.1,0.00329695]
[1766655312003,0.97671825,2928.2,2927.1,3.42029695]
[1766655312203,3.58786,2928.3,2927.1,3.42029695]
[1766655312405,0.97658475,2928.2,2927.1,3.42029695]
[1766655312602,0.97658475,2928.1,2927.1,3.42029695]
[1766655312803,3.417,2928.0,2927.1,3.42029695]
[1766655327912,0.17086,2928.3,2927.1,3.42029695]
[1766655328115,4.39352362,2928.2,2927.1,3.42029695]
[1766655328413,0.97652362,2928.1,2927.1,3.42029695]
[1766655332321,0.17086,2928.3,2927.1,3.42029695]
[1766655332522,3.417,2928.2,2927.1,3.42029695]
[1766655334631,0.00292954,2928.7,2927.1,3.42029695]
[1766655334828,3.417,2928.6,2927.1,3.42029695]
[1766655341726,3.417,2928.6,2927.2,6.207]
[1766655341923,3.417,2928.6,2927.3,3.417]
[1766655354335,3.417,2928.5,2927.3,3.417]
[1766655370853,3.417,2928.5,2927.1,0.00329695]
[1766655371053,0.97375036,2928.4,2927.2,9.02]
[1766655371355,3.417,2928.5,2927.2,9.02]
[1766655371555,0.97352138,2928.4,2927.2,9.02]
[1766655371754,3.417,2928.5,2927.2,9.02]
[1766655371958,0.9735226,2928.4,2927.2,9.02]
[1766655372154,3.417,2928.5,2927.2,9.02]
[1766655372355,0.9733822,2928.4,2927.2,9.02]
[1766655372559,3.417,2928.5,2927.2,9.02]
[1766655372860,0.97338218,2928.4,2927.2,9.02]
[1766655373166,0.97338218,2928.3,2927.2,9.02]
[1766655373462,3.417,2928.2,2927.2,9.02]
[1766655385470,0.00292954,2928.7,2927.2,10.05915387]
[1766655386770,0.00292954,2928.7,2927.2,9.02]
[1766655386976,0.00292954,2928.7,2927.2,10.05601165]
[1766655388170,0.00292954,2928.7,2927.2,9.02]
[1766655388366,0.00292954,2928.7,2927.2,10.05449174]
[1766655390569,0.00292954,2928.7,2927.2,10.05427601]
[1766655391175,0.00292954,2928.7,2927.2,9.02]
[1766655391763,0.00292954,2928.7,2927.2,10.05427601]
[1766655392280,0.00292954,2928.7,2927.2,10.05159324]
[1766655392773,0.00292954,2928.7,2927.2,10.067862]
[1766655393869,0.00292954,2928.7,2927.2,10.07819925]
[1766655394069,0.00292954,2928.7,2927.2,9.02]
[1766655394273,0.00292954,2928.7,2927.2,10.07819925]
[1766655394879,0.00292954,2928.7,2927.2,10.06196134]
[1766655395774,0.00292954,2928.7,2927.2,9.02]
[1766655396079,0.00292954,2928.7,2927.2,10.05095097]
[1766655396481,0.00292954,2928.7,2927.3,8.542]
[1766655398881,0.00292954,2928.7,2927.3,9.58114088]
[1766655400278,0.00292954,2928.7,2927.3,9.58619603]
[1766655400789,0.00292954,2928.7,2927.3,8.542]
[1766655400988,0.00292954,2928.7,2927.3,9.58619603]
[1766655401887,0.00292954,2928.7,2927.3,8.542]
[1766655402184,0.00292954,2928.7,2927.3,9.55697365]
[1766655402687,0.00292954,2928.7,2927.3,8.542]
[1766655403287,0.00292954,2928.7,2927.3,9.55697365]
[1766655403584,0.00292954,2928.7,2927.4,6.223]
[1766655403785,0.00292954,2928.7,2927.5,3.416]
[1766655412688,3.416,2928.6,2927.5,3.416]
[1766655425607,3.416,2928.6,2927.4,1.02240869]
[1766655425811,0.96984322,2928.5,2927.4,4.51638225]
[1766655426010,0.96980601,2928.4,2927.4,4.51638225]
[1766655426212,3.416,2928.3,2927.4,4.51638225]
[1766655426415,3.416,2928.2,2927.4,4.51638225]
[1766655427009,3.416,2928.2,2927.4,3.416]
[1766655431313,3.416,2928.2,2927.2,3.52568246]
[1766655437822,3.416,2928.2,2927.2,2.413]
[1766655438015,6.055,2928.1,2927.2,2.413]
[1766655438222,9.472,2928.1,2927.2,2.413]
[1766655440620,9.472,2928.1,2927.1,3.41929695]
[1766655450929,6.055,2928.0,2927.1,3.41929695]
[1766655451138,3.417,2927.9,2927.1,3.41929695]
[1766655458337,0.17086,2928.4,2927.1,3.41929695]
[1766655458533,6.054,2928.1,2927.1,3.41929695]
[1766655458729,3.417,2928.0,2927.1,3.41929695]
[1766655536515,3.417,2928.0,2927.1,0.00329695]
[1766655536716,3.417,2928.0,2927.2,3.417]
[1766655552828,3.417,2928.0,2927.1,0.00329695]
[1766655553027,0.9706488,2927.9,2927.1,0.00329695]
[1766655553226,3.417,2928.0,2927.1,0.00329695]
[1766655553426,0.97023582,2927.9,2927.1,0.00329695]
[1766655553626,3.417,2928.0,2927.1,0.00329695]
[1766655553828,0.9702293,2927.9,2927.1,0.00329695]
[1766655554126,3.417,2928.0,2927.1,0.00329695]
[1766655554327,0.97022128,2927.9,2927.1,0.00329695]
[1766655554522,3.417,2928.0,2927.1,0.00329695]
[1766655554732,0.97005289,2927.9,2927.1,0.00329695]
[1766655554934,3.417,2928.0,2927.1,0.00329695]
[1766655555128,0.9700092,2927.9,2927.1,0.00329695]
[1766655555335,3.417,2928.0,2926.9,3.417]
[1766655555525,0.96987663,2927.9,2926.9,3.417]
[1766655555729,3.417,2928.0,2926.9,3.417]
[1766655555938,0.96987661,2927.9,2926.9,3.417]
[1766655556136,3.417,2928.0,2926.9,3.417]
[1766655556338,0.96977079,2927.9,2926.9,3.42130135]
[1766655556539,3.417,2928.0,2926.9,3.42130135]
[1766655556727,0.96976913,2927.9,2926.9,3.42130135]
[1766655556930,3.417,2928.0,2926.9,3.42130135]
[1766655557132,0.96975769,2927.9,2926.9,3.42130135]
[1766655557332,3.417,2928.0,2926.9,3.42130135]
[1766655557532,0.96966982,2927.9,2926.9,3.42130135]
[1766655557837,3.417,2928.0,2926.9,3.42130135]
[1766655558039,0.96966982,2927.9,2926.9,3.42130135]
[1766655558232,3.417,2928.0,2926.9,3.42130135]
[1766655558434,0.96960101,2927.9,2926.9,3.42130135]
[1766655558638,3.417,2928.0,2926.9,3.42130135]
[1766655558839,0.96960088,2927.9,2926.9,3.42130135]
[1766655559139,3.417,2928.0,2926.9,3.42130135]
[1766655559339,0.96958803,2927.9,2926.9,3.42130135]
[1766655559639,3.417,2928.0,2926.9,3.42130135]
[1766655559940,0.96954259,2927.9,2926.9,3.42130135]
[1766655560133,3.417,2928.0,2926.9,3.42130135]
[1766655560334,0.96949459,2927.9,2926.9,3.42130135]
[1766655560535,3.417,2928.0,2926.9,3.42130135]
[1766655560834,0.96949659,2927.9,2926.9,3.42130135]
[1766655561036,3.417,2928.0,2926.9,3.42130135]
[1766655562746,0.17089,2927.8,2926.9,0.00430135]
[1766655562948,3.417,2927.7,2926.9,1.35e-06]
[1766655563146,5.856,2927.6,2926.9,1.35e-06]
[1766655568448,6.047,2927.5,2926.9,1.35e-06]
[1766655568644,3.417,2927.4,2926.9,1.35e-06]
[1766655571849,0.17089,2927.8,2926.9,1.35e-06]
[1766655572150,4.506,2927.7,2926.9,1.35e-06]
[1766655576445,9.465,2927.6,2926.9,1.35e-06]
[1766655576639,8.71589,2927.8,2926.9,1.35e-06]
[1766655576640,6.047,2927.5,2926.9,1.35e-06]
[1766655576855,3.418,2927.4,2926.9,1.35e-06]
[1766655583058,0.17089,2927.8,2926.9,1.35e-06]
[1766655583260,6.046,2927.6,2926.9,1.35e-06]
[1766655586559,0.17086,2928.3,2926.9,1.35e-06]
[1766655586758,9.0662478,2928.2,2926.9,1.35e-06]
[1766655586953,0.9682478,2928.1,2926.9,1.35e-06]
[1766655587154,3.418,2928.0,2926.9,1.35e-06]
[1766655588162,0.17086,2928.3,2926.9,1.35e-06]
[1766655588363,6.046,2928.1,2926.9,1.35e-06]
[1766655588957,0.17086,2928.3,2926.9,1.35e-06]
[1766655589163,10.43090431,2928.2,2926.9,1.35e-06]
[1766655589364,9.463,2928.2,2926.9,1.35e-06]
[1766655589863,0.17086,2928.3,2926.9,1.35e-06]
[1766655590064,9.078,2928.2,2926.9,1.35e-06]
[1766655602066,0.5877808,2928.4,2926.9,1.35e-06]
[1766655602371,0.00292954,2928.7,2927.0,4.74204964]
[1766655602558,0.00292954,2928.7,2927.1,9.62]
[1766655611273,0.00292954,2928.7,2926.9,1.35e-06]
[1766655611574,0.17086,2928.4,2926.9,1.35e-06]
[1766655611974,18.0,2928.3,2926.9,1.35e-06]
[1766655613078,18.002,2928.2,2926.9,1.35e-06]
[1766655619278,0.95975845,2928.1,2926.1,3.417]
[1766655619472,0.00512138,2927.4,2926.1,3.417]
[1766655619669,9.462,2927.3,2926.1,3.3174]
[1766655619978,9.462,2927.3,2925.7,1.03006759]
[1766655620183,0.17094,2926.9,2925.0,3.417]
[1766655620382,3.417,2926.8,2925.0,4.44722987]
[1766655620580,0.205,2926.7,2925.0,4.44722987]
[1766655620882,0.17094,2926.9,2925.0,3.417]
[1766655621086,5.549,2926.8,2925.0,3.58805]
[1766655621381,3.417,2926.7,2925.0,3.59184316]
[1766655621600,3.417,2926.6,2925.0,3.59184316]
[1766655621772,3.42030301,2926.6,2925.0,3.59184316]
[1766655622186,0.00330301,2926.6,2925.0,3.59184316]
[1766655622378,3.417,2926.5,2925.0,3.59184316]
[1766655625986,0.00330301,2926.6,2925.0,3.59184316]
[1766655626185,3.418,2926.5,2925.0,3.59184316]
[1766655628684,3.418,2926.5,2925.1,6.2]
[1766655629790,0.00330301,2926.6,2925.1,6.2]
[1766655629991,3.418,2926.5,2925.1,6.2]
[1766655632193,0.00330301,2926.6,2925.3,0.17103]
[1766655632488,0.00330301,2926.6,2925.5,0.17102]
[1766655632798,0.00330301,2926.6,2925.6,3.304]
[1766655632992,0.00330301,2926.6,2925.7,3.418]
[1766655656616,3.01e-06,2926.6,2925.7,3.418]
[1766655656813,3.418,2926.9,2925.7,3.418]
[1766655657712,3.42174603,2926.9,2925.7,3.418]
[1766655692130,3.42174603,2926.9,2925.7,3.2586]
[1766655692329,3.42174603,2926.9,2925.6,3.304]
[1766655692330,3.42174603,2926.9,2925.4,4.44362562]
[1766655693942,0.00374603,2926.9,2925.4,4.44362562]
[1766655694244,9.462,2926.8,2925.4,4.45711569]
[1766655694445,6.04774603,2926.9,2925.4,4.45714281]
[1766655694644,3.418,2926.8,2925.4,4.45714281]
[1766655694845,3.418,2926.8,2925.4,4.47716143]
[1766655695643,3.418,2926.8,2925.4,3.418]
[1766655695843,3.418,2926.8,2925.4,4.47716143]
[1766655696854,3.418,2926.8,2925.4,4.47098269]
[1766655698549,3.418,2926.8,2925.4,3.418]
[1766655698754,3.418,2926.8,2925.4,4.43868534]
[1766655699448,3.418,2926.8,2925.4,4.45273125]
[1766655700358,3.418,2926.8,2925.5,6.19]
[1766655701557,3.418,2926.8,2925.5,7.24177481]
[1766655702754,3.418,2926.8,2925.5,7.24457878]
[1766655703753,3.418,2926.8,2925.5,7.23640766]
[1766655707258,3.418,2926.8,2925.5,6.19]
[1766655707457,3.418,2926.8,2925.5,7.2166956]
[1766655707652,3.418,2926.8,2925.6,8.546]
[1766655707858,3.418,2926.8,2925.7,3.418]
[1766655713158,3.418,2926.8,2925.8,3.418]
[1766655714971,3.42174603,2926.9,2925.8,3.418]
[1766655715260,0.00374603,2926.9,2925.8,3.418]
[1766655722261,3.418,2926.8,2925.8,3.418]
[1766655733677,0.00374603,2926.9,2925.8,3.418]
[1766655734879,0.00374603,2926.9,2925.8,4.43381802]
[1766655735280,4.603e-05,2926.9,2925.8,4.43381802]
[1766655738278,4.603e-05,2926.9,2925.9,3.85600015]
[1766655740887,4.603e-05,2926.9,2925.9,0.171]
[1766655742286,4.603e-05,2926.9,2926.0,18.146]
[1766655776800,0.00512138,2927.4,2926.0,18.31699]
[1766655777803,0.00881483,2927.4,2926.0,18.31699]
[1766655784013,3.418,2927.3,2926.0,18.31699]
[1766655787912,3.418,2927.3,2926.0,18.146]
[1766655796926,0.00881483,2927.4,2926.0,18.146]
[1766655797224,3.418,2927.3,2926.0,18.146]
[1766655820135,0.00881483,2927.4,2926.0,18.146]
[1766655820333,3.418,2927.3,2926.0,18.146]
[1766655824335,0.00881483,2927.4,2926.0,18.146]
[1766655824541,3.418,2927.3,2926.0,18.146]
[1766655827245,0.00881483,2927.4,2926.0,18.146]
[1766655827432,3.418,2927.3,2926.0,18.146]
[1766655829344,3.418,2927.2,2926.0,18.146]
[1766655832240,0.00881483,2927.4,2926.0,18.146]
[1766655832445,3.418,2927.3,2926.0,18.146]
[1766655833147,0.00881483,2927.4,2926.0,18.146]
[1766655833541,2.8996,2927.3,2926.0,18.146]
[1766655833740,2.6404,2927.3,2926.0,18.146]
[1766655834047,2.2815,2927.3,2926.0,18.146]
[1766655842454,2.0822,2927.3,2926.0,18.146]
[1766655842657,1.8231,2927.3,2926.0,18.146]
[1766655843862,0.00881483,2927.4,2926.0,18.31699]
[1766655844050,3.418,2927.6,2926.1,0.17099]
[1766655844866,0.17087,2928.1,2926.1,0.17099]
[1766655845058,0.00512138,2927.4,2926.8,0.00512138]
[1766655845258,0.00512138,2927.4,2926.9,3.418]
[1766655848372,3.418,2927.6,2926.9,3.418]
[1766655849474,0.00512138,2927.5,2926.9,3.418]
[1766655854079,0.00512138,2927.5,2926.8,0.00512138]
[1766655860077,3.417,2927.4,2926.8,0.00512138]
[1766655861185,3.417,2927.4,2926.3,0.89675373]
[1766655861485,3.417,2927.4,2926.4,3.417]
[1766655862389,3.417,2927.4,2926.6,0.00512138]
[1766655873190,3.417,2927.4,2925.8,4.528]
[1766655873399,3.417,2927.4,2925.9,3.418]
[1766655874490,3.417,2927.4,2925.9,4.29798233]
[1766655875598,3.417,2927.4,2925.9,3.418]
[1766655875799,3.417,2927.4,2925.9,4.27439773]
[1766655877297,3.417,2927.4,2925.9,3.418]
[1766655878095,3.417,2927.4,2925.9,4.28149391]
[1766655885593,0.17603138,2927.5,2925.9,4.28149391]
[1766655885798,14.45274406,2927.4,2925.9,4.28149391]
[1766655886094,13.483,2927.4,2925.9,4.28149391]
[1766655889099,0.17603138,2927.5,2925.9,4.28149391]
[1766655889402,6.032,2927.3,2925.9,4.28149391]
[1766655894808,0.17603138,2927.5,2925.9,4.28149391]
[1766655894996,6.031,2927.2,2925.9,4.28149391]
[1766655895200,3.418,2927.1,2925.9,4.28149391]
[1766655896009,0.00512138,2927.5,2926.0,0.171]
[1766655896212,0.00512138,2927.5,2926.0,3.90593928]
[1766655900014,0.00512138,2927.5,2926.0,0.171]
[1766655900611,0.00512138,2927.5,2926.1,5.386]
[1766655902514,3.418,2927.4,2926.1,5.386]
[1766655902714,0.00512138,2927.5,2926.1,5.386]
[1766655903014,3.418,2927.4,2926.1,5.386]
[1766655907218,3.2586,2927.4,2926.1,5.386]
[1766655908014,0.00512138,2927.5,2926.1,5.386]
[1766655908214,3.42312138,2927.5,2926.1,5.386]
[1766655911419,2.98263493,2928.1,2926.2,0.17098]
[1766655911726,3.418,2927.8,2926.2,0.17098]
[1766655912424,0.00512138,2927.3,2926.7,0.00512138]
[1766655912624,0.00512138,2927.3,2926.8,9.625]
[1766655914421,3.418,2927.9,2926.8,9.625]
[1766655915322,0.00512138,2927.6,2926.8,9.625]
[1766655934437,0.00363493,2928.1,2926.8,9.625]
[1766655934642,3.417,2927.8,2926.8,9.625]
[1766655935437,0.00512138,2927.6,2926.8,9.625]
[1766655938740,3.417,2927.9,2926.8,9.625]
[1766655939741,0.00512138,2927.6,2926.8,9.625]
[1766655940338,3.417,2927.9,2926.8,9.625]
[1766655941131,0.00512138,2927.6,2926.8,9.625]
[1766655942645,3.417,2927.9,2926.8,9.625]
[1766655943348,0.00363493,2928.1,2926.8,9.625]
[1766655943645,3.417,2928.0,2926.8,9.625]
[1766655944349,3.42063493,2928.1,2926.8,9.625]
[1766655947652,0.00363493,2928.1,2926.8,9.625]
[1766655949146,0.00363493,2928.1,2926.8,9.79595]
[1766655949346,3.417,2928.4,2926.8,9.79595]
[1766655949749,3.417,2928.4,2926.8,14.08792961]
[1766655950154,3.417,2928.4,2926.8,9.79595]
[1766655950353,3.42138812,2928.4,2926.8,9.79595]
[1766655951662,3.42138812,2928.4,2926.9,0.17094]
[1766655951852,3.42138812,2928.4,2926.9,0.93767143]
[1766655964273,3.42138812,2928.4,2927.0,0.17094]
[1766655964470,3.42138812,2928.4,2927.1,3.417]
[1766655964770,3.42138812,2928.4,2927.2,6.197]
[1766655981682,3.42138812,2928.4,2927.3,8.542]